fUST/lending_fUST_20250930
["ID","MTS","AMOUNT","RATE_DAILY","PERIOD"]
[388464626,1759179488075,664.7896647,0.00021939,2]
[388464633,1759179603037,150.63440084,0.00024712,30]
[388464634,1759179603216,150.63440084,0.00024877,30]
[388464635,1759179607442,1000.0,0.00022027,2]
[388464636,1759179608191,483.99922484,0.00022027,2]
[388464637,1759179609233,250.0,0.00022027,2]
[388464638,1759179609863,151.79164016,0.00022027,2]
[388464639,1759179609906,98.20835984,0.00022027,2]
[388464640,1759179610499,250.0,0.00022027,2]
[388464641,1759179611159,250.0,0.00022027,2]
[388464642,1759179611484,151.0,0.00022027,2]
[388464643,1759179611846,250.0,0.00022027,2]
[388464644,1759179613120,250.0,0.00022027,2]
[388464645,1759179613176,200.0,0.00022027,2]
[388464646,1759179613530,168.56119286,0.00022027,2]
[388464647,1759179613805,250.0,0.00022027,2]
[388464648,1759179613898,200.0,0.00022027,2]
[388464649,1759179614484,250.0,0.00022027,2]
[388464650,1759179614745,200.0,0.00022027,2]
[388464651,1759179615214,200.0,0.00022027,2]
[388464652,1759179615414,282.15011065,0.00022027,2]
[388464653,1759179618012,376.38122859,0.00022035,2]
[388464655,1759179624432,500.0,0.00022027,2]
[388464656,1759179625126,500.0,0.00022027,2]
[388464657,1759179625768,500.0,0.00022027,2]
[388464658,1759179626497,500.0,0.00022027,2]
[388464659,1759179627141,500.0,0.00022027,2]
[388464660,1759179627815,500.0,0.00022027,2]
[388464661,1759179628442,344.94235381,0.00022027,2]
[388464662,1759179628484,155.05764619,0.00022027,2]
[388464663,1759179629074,500.0,0.00022027,2]
[388464664,1759179629902,500.0,0.00022027,2]
[388464665,1759179630648,500.0,0.00022027,2]
[388464666,1759179631269,-272.09992482,0.00022035,2]
[388464667,1759179631333,500.0,0.00022027,2]
[388464668,1759179631955,500.0,0.00022027,2]
[388464669,1759179632606,500.0,0.00022027,2]
[388464670,1759179647055,-284.45643008,0.00022035,2]
[388464672,1759179661643,-159.10982068,0.00022035,2]
[388464680,1759179728408,159.2550529,0.00021935,2]
[388464684,1759179756207,-488.54462892,0.00022035,2]
[388464685,1759179756253,-107.95259583,0.00022035,2]
[388464686,1759179756297,-300.0,0.00022035,2]
[388464687,1759179756343,-1200.0,0.00022035,2]
[388464688,1759179766465,-500.0,0.00022035,2]
[388464689,1759179766511,-489.34420571,0.00022035,2]
[388464690,1759179766554,-500.0,0.00022035,2]
[388464691,1759179766601,-411.74633171,0.00022035,2]
[388464692,1759179766647,-500.0,0.00022035,2]
[388464693,1759179767098,-8201.40757086,0.00022036,2]
[388464694,1759179767148,-10000.01,0.00022036,2]
[388464695,1759179767205,-10000.01,0.00022036,2]
[388464696,1759179767319,-10000.01,0.00022036,2]
[388464697,1759179767519,-10000.01,0.00022036,2]
[388464698,1759179767724,-1798.55242914,0.00022036,2]
[388464699,1759179767768,-300.0,0.00022036,2]
[388464700,1759179767813,-300.0,0.00022036,2]
[388464701,1759179767864,-300.0,0.00022036,2]
[388464702,1759179768088,-500.0,0.00022036,2]
[388464703,1759179768130,-480.0,0.00022036,2]
[388464704,1759179768173,-480.55789246,0.00022036,2]
[388464705,1759179768218,-480.0,0.00022036,2]
[388464706,1759179768260,-226.35319428,0.00022036,2]
[388464707,1759179768441,-269.08296824,0.00022036,2]
[388464708,1759179768483,-480.0,0.00022036,2]
[388464709,1759179768524,-480.0,0.00022036,2]
[388464710,1759179768570,-480.0,0.00022036,2]
[388464711,1759179768616,-480.0,0.00022036,2]
[388464712,1759179768660,-480.0,0.00022036,2]
[388464713,1759179768706,-477.53211665,0.00022036,2]
[388464714,1759179768749,-480.0,0.00022036,2]
[388464715,1759179768795,-160.0,0.00022037,2]
[388464716,1759179768841,-480.0,0.00022037,2]
[388464717,1759179768886,-480.0,0.00022037,2]
[388464718,1759179768929,-26.77983022,0.00022037,2]
[388464719,1759179769028,-453.22016978,0.00022037,2]
[388464720,1759179769072,-480.0,0.00022037,2]
[388464721,1759179769116,-480.0,0.00022037,2]
[388464722,1759179769160,-480.0,0.00022037,2]
[388464723,1759179769206,-480.0,0.00022037,2]
[388464724,1759179769249,-480.0,0.00022037,2]
[388464725,1759179769292,-480.0,0.00022037,2]
[388464726,1759179769335,-480.0,0.00022037,2]
[388464727,1759179769382,-480.0,0.00022037,2]
[388464728,1759179769426,-612.37,0.00022037,2]
[388464729,1759179770565,-136.71296824,0.00022037,2]
[388464730,1759179770599,-343.28703176,0.00022037,2]
[388464731,1759179770608,-269.08296824,0.00022037,2]
[388464732,1759179770639,-188.82966044,0.00022037,2]
[388464733,1759179776056,-519.33737132,0.00022037,2]
[388464734,1759179776101,-787.0,0.00022037,2]
[388464735,1759179776153,-480.0,0.00022037,2]
[388464736,1759179776196,-480.0,0.00022037,2]
[388464737,1759179776241,-1222.43,0.00022037,2]
[388464738,1759179776288,-480.0,0.00022037,2]
[388464739,1759179776334,-480.0,0.00022037,2]
[388464740,1759179776703,-1611.4,0.00022037,2]
[388464741,1759179776749,-480.0,0.00022037,2]
[388464742,1759179776792,-480.0,0.00022037,2]
[388464743,1759179776838,-480.0,0.00022037,2]
[388464744,1759179776886,-480.0,0.00022037,2]
[388464745,1759179776933,-480.0,0.00022037,2]
[388464746,1759179776978,-480.0,0.00022037,2]
[388464747,1759179777023,-488.81,0.00022037,2]
[388464748,1759179777431,-171.4,0.00022037,2]
[388464749,1759179777471,-29.93005662,0.00022037,2]
[388464750,1759179777480,-450.06994338,0.00022037,2]
[388464751,1759179777511,-29.93005662,0.00022037,2]
[388464752,1759179777520,-458.87994338,0.00022037,2]
[388464753,1759179777553,-39.59,0.00022037,2]
[388464754,1759179796055,-581.69095663,0.00021937,2]
[388464755,1759179796102,-500.0,0.0002203,3]
[388464756,1759179796148,-1066.7,0.0002203,3]
[388464757,1759179796196,-221.28,0.0002203,10]
[388464758,1759179796424,-500.0,0.00022035,2]
[388464759,1759179796470,-393.29689068,0.00022035,2]
[388464760,1759179796515,-480.0,0.00022036,2]
[388464761,1759179796555,-300.0,0.00022036,2]
[388464762,1759179796598,-154.75005662,0.00022037,2]
[388464763,1759179796641,-480.0,0.00022037,2]
[388464764,1759179796684,-52.97419214,0.00022037,2]
[388464765,1759179796871,-538.62580786,0.00022037,2]
[388464766,1759179796916,-480.0,0.00022037,2]
[388464767,1759179796958,-480.0,0.00022037,2]
[388464768,1759179797002,-1350.48,0.00022037,2]
[388464769,1759179797045,-480.0,0.00022037,2]
[388464770,1759179797090,-480.0,0.00022037,2]
[388464771,1759179797132,-480.0,0.00022037,2]
[388464772,1759179797173,-480.0,0.00022037,2]
[388464773,1759179797268,-480.0,0.00022037,2]
[388464774,1759179797312,-480.0,0.00022037,2]
[388464775,1759179797361,-480.0,0.00022037,2]
[388464776,1759179797403,-1049.73,0.00022037,2]
[388464777,1759179797446,-480.0,0.00022037,2]
[388464778,1759179797486,-480.0,0.00022037,2]
[388464779,1759179797528,-480.0,0.00022037,2]
[388464780,1759179797572,-480.0,0.00022037,2]
[388464781,1759179797618,-480.0,0.00022037,2]
[388464782,1759179797810,-480.0,0.00022037,2]
[388464783,1759179797855,-480.0,0.00022037,2]
[388464784,1759179797901,-2616.28,0.00022037,2]
[388464785,1759179797942,-899.34,0.00022037,2]
[388464786,1759179797983,-480.0,0.00022037,2]
[388464787,1759179798113,-480.0,0.00022037,2]
[388464788,1759179798156,-480.0,0.00022037,2]
[388464789,1759179798201,-480.0,0.00022037,2]
[388464790,1759179798245,-2500.03,0.00022037,2]
[388464791,1759179798286,-480.0,0.00022037,2]
[388464792,1759179798513,-3352.56,0.00022037,2]
[388464793,1759179798698,-3294.89,0.00022037,2]
[388464794,1759179798744,-933.18,0.00022037,2]
[388464795,1759179798787,-480.0,0.00022037,2]
[388464796,1759179798831,-103.87,0.00022037,2]
[388464797,1759179799084,-376.13,0.00022037,2]
[388464798,1759179799135,-480.0,0.00022037,2]
[388464799,1759179799182,-480.0,0.00022037,2]
[388464800,1759179799228,-534.1,0.00022037,2]
[388464801,1759179799274,-914.08,0.00022037,2]
[388464802,1759179799321,-1593.86,0.00022037,2]
[388464803,1759179799368,-480.0,0.00022037,2]
[388464804,1759179800785,-322.54419214,0.00022037,2]
[388464805,1759179800822,-157.45580786,0.00022037,2]
[388464806,1759179800832,-322.54419214,0.00022037,2]
[388464807,1759179800867,-157.45580786,0.00022037,2]
[388464808,1759179800877,-322.54419214,0.00022037,2]
[388464809,1759179800920,-376.13,0.00022035,2]
[388464810,1759179800951,-103.87,0.00022035,2]
[388464811,1759179800960,-157.45580786,0.00022037,2]
[388464812,1759179800969,-218.67419214,0.00022037,2]
[388464813,1759179801058,-480.0,0.00022037,2]
[388464814,1759179801089,-534.1,0.00022037,2]
[388464815,1759179801125,-281.49580786,0.00022037,2]
[388464816,1759179801134,-480.0,0.00022037,2]
[388464817,1759179801143,-152.58419214,0.00022037,2]
[388464818,1759179801181,-327.41580786,0.00022037,2]
[388464819,1759179801191,-480.0,0.00022037,2]
[388464820,1759179801200,-480.0,0.00022037,2]
[388464821,1759179801209,-306.44419214,0.00022037,2]
[388464822,1759179801242,-173.55580786,0.00022037,2]
[388464823,1759179801251,-306.44419214,0.00022037,2]
[388464824,1759179801281,-173.55580786,0.00022037,2]
[388464825,1759179801290,-110.11419214,0.00022037,2]
[388464826,1759179806259,-2879.98401668,0.00021815,13]
[388464827,1759179806304,-533.35,0.0002203,3]
[388464828,1759179806349,-369.88580786,0.00022037,2]
[388464829,1759179806396,-480.0,0.00022037,2]
[388464830,1759179806644,-1473.57035092,0.00022037,2]
[388464831,1759179806708,-150.95964908,0.00022037,2]
[388464832,1759179806752,-480.0,0.00022037,2]
[388464833,1759179806794,-480.0,0.00022037,2]
[388464834,1759179806836,-2147.62,0.00022037,2]
[388464835,1759179806881,-480.0,0.00022037,2]
[388464836,1759179806924,-480.0,0.00022037,2]
[388464837,1759179806968,-480.0,0.00022037,2]
[388464838,1759179807010,-122.85070184,0.00022037,2]
[388464839,1759179807148,-357.14929816,0.00022037,2]
[388464840,1759179807194,-523.47,0.00022037,2]
[388464841,1759179807240,-480.0,0.00022037,2]
[388464842,1759179807284,-480.0,0.00022037,2]
[388464843,1759179807331,-480.0,0.00022037,2]
[388464844,1759179807376,-480.0,0.00022037,2]
[388464845,1759179807421,-709.54,0.00022037,2]
[388464846,1759179807463,-670.92,0.00022037,2]
[388464847,1759179807505,-474.76257992,0.00022037,2]
[388464848,1759179807548,-262.110353,0.00022037,2]
[388464849,1759179807747,-480.0,0.00022037,2]
[388464850,1759179807791,-1323.06,0.00022037,2]
[388464851,1759179807836,-693.3,0.00022037,2]
[388464852,1759179807882,-480.0,0.00022037,2]
[388464853,1759179807925,-664.1,0.00022037,2]
[388464854,1759179807969,-979.68,0.00022037,2]
[388464855,1759179808011,-279.73,0.00022037,2]
[388464856,1759179808205,-200.27,0.00022037,2]
[388464857,1759179808248,-1589.4,0.00022037,2]
[388464858,1759179808294,-480.0,0.00022037,2]
[388464859,1759179808338,-586.86,0.00022037,2]
[388464860,1759179808384,-679.03,0.00022037,2]
[388464861,1759179808430,-754.2,0.00022037,2]
[388464862,1759179808473,-480.0,0.00022037,2]
[388464863,1759179809905,-184.4,0.0002203,10]
[388464864,1759179809914,-102.725189,0.00022037,2]
[388464865,1759179809952,-377.274811,0.00022037,2]
[388464866,1759179809962,-102.725189,0.00022037,2]
[388464867,1759179810000,-460.49,0.00022037,2]
[388464868,1759179826323,-266.67,0.0002203,3]
[388464869,1759179826371,-522.09,0.0002203,3]
[388464870,1759179826420,-500.0,0.00022035,2]
[388464871,1759179826463,-480.0,0.00022035,2]
[388464872,1759179826506,-651.374811,0.00022037,2]
[388464873,1759179826552,-1463.75,0.00022037,2]
[388464874,1759179826596,-480.0,0.00022037,2]
[388464875,1759179826648,-335.700378,0.00022037,2]
[388464876,1759179826821,-600.839622,0.00022037,2]
[388464877,1759179826869,-480.0,0.00022037,2]
[388464878,1759179826911,-480.0,0.00022037,2]
[388464879,1759179826951,-480.0,0.00022037,2]
[388464880,1759179826998,-480.0,0.00022037,2]
[388464881,1759179827046,-480.0,0.00022037,2]
[388464882,1759179827089,-480.0,0.00022037,2]
[388464883,1759179827132,-480.0,0.00022037,2]
[388464884,1759179827175,-480.0,0.00022037,2]
[388464885,1759179827219,-480.0,0.00022037,2]
[388464886,1759179827390,-480.0,0.00022037,2]
[388464887,1759179827436,-867.05,0.00022037,2]
[388464888,1759179827477,-379.20504312,0.00022037,2]
[388464889,1759179827519,-480.0,0.00022037,2]
[388464890,1759179827561,-480.0,0.00022037,2]
[388464891,1759179827606,-483.90084491,0.00022037,2]
[388464892,1759179827652,-480.0,0.00022037,2]
[388464893,1759179827698,-480.0,0.00022037,2]
[388464894,1759179827750,-125.26822394,0.00022037,2]
[388464895,1759179827968,-1489.16177606,0.00022037,2]
[388464896,1759179828012,-480.0,0.00022037,2]
[388464897,1759179828057,-1243.94,0.00022037,2]
[388464898,1759179828102,-480.0,0.00022037,2]
[388464899,1759179828253,-4393.91,0.00022037,2]
[388464900,1759179828294,-480.0,0.00022037,2]
[388464901,1759179828498,-2120.01598332,0.0002181,13]
[388464902,1759179828541,-500.0,0.00022039,2]
[388464903,1759179828584,-1666.45,0.00022039,2]
[388464904,1759179828626,-480.0,0.00022039,2]
[388464906,1759179829261,-480.0,0.00022037,2]
[388464907,1759179829305,-480.0,0.00022039,2]
[388464908,1759179829349,-811.97,0.00022039,2]
[388464909,1759179829394,-2963.82,0.00022039,2]
[388464910,1759179829969,-420.22382926,0.00022039,2]
[388464911,1759179830088,-108.20617074,0.00022039,2]
[388464912,1759179830097,-358.87186262,0.00022039,2]
[388464913,1759179830187,-153.67,0.0002203,10]
[388464914,1759179830196,-326.33,0.00022037,2]
[388464915,1759179830243,-153.67,0.00022037,2]
[388464916,1759179830252,-266.45813738,0.00022039,2]
[388464917,1759179830261,-59.87186262,0.00022039,2]
[388464918,1759179830301,-811.97,0.00022039,2]
[388464919,1759179830336,-725.14813738,0.00022039,2]
[388464920,1759179830345,-2365.9566623,0.00022039,2]
[388464921,1759179830354,-401.14520032,0.00022039,2]
[388464922,1759179836138,-480.0,0.00022037,2]
[388464923,1759179836185,-480.0,0.00022037,2]
[388464924,1759179836230,-480.0,0.00022037,2]
[388464925,1759179836279,-480.0,0.00022037,2]
[388464926,1759179836326,-480.0,0.00022037,2]
[388464927,1759179836377,-480.0,0.00022037,2]
[388464928,1759179836426,-480.0,0.00022037,2]
[388464929,1759179836472,-78.85479968,0.00022039,2]
[388464930,1759179836674,-3268.14,0.00022039,2]
[388464931,1759179836718,-904.24,0.00022039,2]
[388464932,1759179836988,-2218.06040064,0.0002204,2]
[388464933,1759179837022,-904.24,0.0002204,2]
[388464934,1759179837058,-1655.25,0.0002204,2]
[388464935,1759179837109,-10000.01,0.0002204,2]
[388464936,1759179837158,-10000.01,0.0002204,2]
[388464937,1759179837227,-10000.01,0.0002204,2]
[388464938,1759179837271,-10000.01,0.0002204,2]
[388464939,1759179846566,-500.0,0.00022,2]
[388464945,1759179952228,288.0,0.00022,2]
[388464947,1759180061122,590.41289671,0.00021936,2]
[388464948,1759180080629,236.59,0.00016503,2]
[388464955,1759180155819,-184.2837217,0.00022027,3]
[388464956,1759180156129,265.48,0.00022026,10]
[388464957,1759180166716,221.23,0.00022025,10]
[388464958,1759180172270,-159.10982068,0.00022027,3]
[388464959,1759180178855,184.36,0.00022025,10]
[388464960,1759180186815,-272.09992482,0.00022027,3]
[388464962,1759180191181,153.63,0.00022025,10]
[388464963,1759180201355,-119.0965328,0.00022027,3]
[388464964,1759180201376,-154.8434672,0.00022029,3]
[388464965,1759180203663,768.18,0.00022025,10]
[388464966,1759180203750,184.2837217,0.00021934,2]
[388464967,1759180216557,-151.79164016,0.00022027,3]
[388464968,1759180231073,-122.14835984,0.00022027,3]
[388464969,1759180231094,-254.23286875,0.00022028,2]
[388465003,1759180231854,-931.01286874,0.00022028,2]
[388465124,1759180237674,-14.75426251,0.00022028,2]
[388465126,1759180237684,-824.5765328,0.00022029,3]
[388465128,1759180237694,-489.71,0.00022029,3]
[388465130,1759180237703,-244.85,0.00022029,3]
[388465132,1759180237713,-1200.0,0.00022029,2]
[388465134,1759180237724,-300.0,0.00022029,2]
[388465136,1759180237733,-300.0,0.00022029,2]
[388465138,1759180237743,-300.0,0.00022029,2]
[388465140,1759180237752,-300.0,0.00022029,2]
[388465141,1759180237761,-3917.67,0.0002203,3]
[388465143,1759180237771,-1958.84,0.0002203,3]
[388465145,1759180237780,-500.0,0.00022033,2]
[388465147,1759180237789,-500.0,0.00022033,2]
[388465148,1759180237799,-500.0,0.00022033,2]
[388465149,1759180237809,-500.0,0.00022033,2]
[388465150,1759180237819,-500.0,0.00022033,2]
[388465152,1759180237828,-500.0,0.00022033,2]
[388465153,1759180237837,-500.0,0.00022033,2]
[388465154,1759180237847,-500.0,0.00022033,2]
[388465155,1759180237856,-270.72733989,0.00022033,2]
[388465156,1759180237866,-500.0,0.00022033,2]
[388465157,1759180237875,-500.0,0.00022033,2]
[388465158,1759180237885,-500.0,0.00022033,2]
[388465159,1759180237894,-139.15445295,0.00022033,2]
[388465160,1759180237906,-360.84554705,0.00022033,2]
[388465161,1759180237916,-597.30794849,0.00022033,2]
[388465162,1759180237926,-500.0,0.00022033,2]
[388465163,1759180237936,-500.0,0.00022033,2]
[388465164,1759180237946,-500.0,0.00022033,2]
[388465165,1759180237955,-572.48242154,0.00022033,2]
[388465166,1759180237964,-194.98272228,0.00022033,2]
[388465167,1759180237975,-500.0,0.00022033,2]
[388465168,1759180237984,-500.0,0.00022033,2]
[388465169,1759180237994,-500.0,0.00022033,2]
[388465170,1759180238004,-344.98386003,0.00022033,2]
[388465171,1759180238013,-500.0,0.00022033,2]
[388465172,1759180238023,-500.0,0.00022033,2]
[388465173,1759180238033,-500.0,0.00022033,2]
[388465174,1759180238042,-651.29107539,0.00022033,2]
[388465175,1759180238051,-500.0,0.00022033,2]
[388465176,1759180238061,-500.0,0.00022033,2]
[388465177,1759180238070,-331.06628878,0.00022033,2]
[388465178,1759180238079,-294.58789726,0.00022033,2]
[388465179,1759180238089,-334.27248166,0.00022033,2]
[388465180,1759180238098,-480.0,0.00022033,2]
[388465181,1759180238108,-480.0,0.00022033,2]
[388465182,1759180238117,-2644.79,0.00022033,2]
[388465183,1759180238126,-480.0,0.00022033,2]
[388465184,1759180238136,-480.0,0.00022033,2]
[388465185,1759180238145,-876.0,0.00022033,2]
[388465186,1759180238154,-480.0,0.00022033,2]
[388465187,1759180238164,-722.27,0.00022033,2]
[388465188,1759180238174,-480.0,0.00022033,2]
[388465189,1759180238183,-50000.0,0.00022034,2]
[388465190,1759180238192,-1345.78,0.00022035,2]
[388465191,1759180238201,-480.0,0.00022035,2]
[388465192,1759180238210,-480.0,0.00022035,2]
[388465193,1759180238219,-480.0,0.00022035,2]
[388465194,1759180238229,-480.0,0.00022035,2]
[388465195,1759180238238,-480.0,0.00022035,2]
[388465196,1759180238247,-1010.66,0.00022035,2]
[388465197,1759180238256,-480.0,0.00022035,2]
[388465198,1759180238265,-480.0,0.00022035,2]
[388465199,1759180238274,-480.0,0.00022035,2]
[388465200,1759180238283,-480.0,0.00022035,2]
[388465201,1759180238292,-500.0,0.00022035,2]
[388465202,1759180238301,-500.0,0.00022035,2]
[388465203,1759180238310,-480.0,0.00022035,2]
[388465204,1759180238319,-480.0,0.00022035,2]
[388465205,1759180238328,-480.0,0.00022035,2]
[388465206,1759180238337,-480.0,0.00022035,2]
[388465207,1759180238347,-480.0,0.00022035,2]
[388465208,1759180238360,-660.3,0.00022035,2]
[388465209,1759180238369,-480.0,0.00022035,2]
[388465210,1759180238379,-480.0,0.00022035,2]
[388465211,1759180238388,-1371.82,0.00022035,2]
[388465212,1759180238398,-480.0,0.00022035,2]
[388465213,1759180238407,-480.0,0.00022035,2]
[388465214,1759180238417,-480.0,0.00022035,2]
[388465215,1759180238426,-7101.53,0.00022035,2]
[388465216,1759180238437,-2395.86,0.00022035,2]
[388465217,1759180238446,-1541.11,0.00022035,2]
[388465218,1759180238456,-588.15,0.00022035,2]
[388465219,1759180238466,-480.0,0.00022035,2]
[388465220,1759180238475,-480.0,0.00022035,2]
[388465221,1759180238484,-2058.14,0.00022035,2]
[388465222,1759180238493,-480.0,0.00022035,2]
[388465223,1759180238502,-542.08872935,0.00022035,2]
[388465224,1759180238512,-1747.67,0.00022035,2]
[388465225,1759180238521,-480.0,0.00022035,2]
[388465226,1759180238531,-500.0,0.00022036,2]
[388465227,1759180238540,-500.0,0.00022036,2]
[388465228,1759180238549,-500.0,0.00022036,2]
[388465229,1759180238558,-500.0,0.00022036,2]
[388465230,1759180238567,-160.0,0.00022037,2]
[388465231,1759180238576,-480.0,0.00022037,2]
[388465232,1759180238585,-480.0,0.00022037,2]
[388465233,1759180238594,-480.0,0.00022037,2]
[388465234,1759180238604,-480.0,0.00022037,2]
[388465235,1759180238614,-633.7,0.00022037,2]
[388465236,1759180238623,-632.39,0.00022037,2]
[388465237,1759180238632,-480.0,0.00022037,2]
[388465238,1759180238641,-480.0,0.00022037,2]
[388465239,1759180238651,-480.0,0.00022037,2]
[388465240,1759180238661,-545.34,0.00022037,2]
[388465241,1759180238670,-480.0,0.00022037,2]
[388465242,1759180238680,-480.0,0.00022037,2]
[388465243,1759180238689,-480.0,0.00022037,2]
[388465244,1759180238702,-480.0,0.00022037,2]
[388465245,1759180238711,-480.0,0.00022037,2]
[388465246,1759180238721,-545.58,0.00022037,2]
[388465247,1759180238730,-480.0,0.00022037,2]
[388465248,1759180238740,-480.0,0.00022037,2]
[388465249,1759180238749,-480.0,0.00022037,2]
[388465250,1759180238758,-480.0,0.00022037,2]
[388465251,1759180238767,-480.0,0.00022037,2]
[388465252,1759180238777,-480.0,0.00022037,2]
[388465253,1759180238786,-480.0,0.00022037,2]
[388465254,1759180238795,-480.0,0.00022037,2]
[388465255,1759180238804,-480.0,0.00022037,2]
[388465256,1759180238813,-480.0,0.00022037,2]
[388465257,1759180238822,-500.0,0.00022037,2]
[388465258,1759180238831,-480.0,0.00022037,2]
[388465259,1759180238841,-480.0,0.00022037,2]
[388465260,1759180238850,-360.23164017,0.00022037,2]
[388465261,1759180238860,-480.0,0.00022037,2]
[388465262,1759180238870,-543.94,0.00022037,2]
[388465263,1759180238879,-480.0,0.00022037,2]
[388465264,1759180238890,-480.0,0.00022037,2]
[388465265,1759180238899,-480.0,0.00022037,2]
[388465266,1759180238910,-480.0,0.00022037,2]
[388465267,1759180238920,-735.98,0.00022037,2]
[388465268,1759180238929,-480.0,0.00022037,2]
[388465269,1759180238939,-480.0,0.00022037,2]
[388465270,1759180238948,-480.0,0.00022037,2]
[388465271,1759180238957,-480.0,0.00022037,2]
[388465272,1759180238967,-480.0,0.00022037,2]
[388465273,1759180238976,-480.0,0.00022037,2]
[388465274,1759180238986,-480.0,0.00022037,2]
[388465275,1759180238995,-480.0,0.00022037,2]
[388465276,1759180239005,-480.0,0.00022037,2]
[388465277,1759180239015,-509.99,0.00022037,2]
[388465278,1759180239024,-480.0,0.00022037,2]
[388465279,1759180239034,-553.31,0.00022037,2]
[388465280,1759180239043,-739.25,0.00022037,2]
[388465281,1759180239053,-480.0,0.00022037,2]
[388465282,1759180239062,-480.0,0.00022037,2]
[388465283,1759180239072,-480.0,0.00022037,2]
[388465284,1759180239082,-1684.91,0.00022037,2]
[388465285,1759180239091,-480.0,0.00022037,2]
[388465286,1759180239100,-480.0,0.00022037,2]
[388465287,1759180239110,-480.0,0.00022037,2]
[388465288,1759180239120,-1892.76532984,0.00022037,2]
[388465289,1759180239129,-480.0,0.00022037,2]
[388465290,1759180239139,-1232.01,0.00022037,2]
[388465291,1759180239149,-481.01703753,0.00022037,2]
[388465292,1759180239158,-498.83,0.00022037,2]
[388465293,1759180239167,-453.39304695,0.00022037,2]
[388465294,1759180239177,-177.83949429,0.00022037,2]
[388465295,1759180239187,-480.0,0.00022037,2]
[388465296,1759180239196,-480.0,0.00022037,2]
[388465297,1759180239206,-784.13,0.00022037,2]
[388465298,1759180239215,-480.0,0.00022037,2]
[388465299,1759180239225,-480.0,0.00022037,2]
[388465300,1759180239234,-480.0,0.00022037,2]
[388465301,1759180239243,-480.0,0.00022037,2]
[388465302,1759180239253,-480.0,0.00022037,2]
[388465303,1759180239262,-566.54,0.00022037,2]
[388465304,1759180239271,-857.29,0.00022037,2]
[388465305,1759180239281,-496.56,0.00022037,2]
[388465306,1759180239290,-480.0,0.00022037,2]
[388465307,1759180239299,-1010.1,0.00022037,2]
[388465308,1759180239308,-560.85,0.00022037,2]
[388465309,1759180239317,-480.0,0.00022037,2]
[388465310,1759180239327,-881.56,0.00022037,2]
[388465311,1759180239336,-480.0,0.00022037,2]
[388465313,1759180239346,-480.0,0.00022037,2]
[388465315,1759180239359,-525.61,0.00022037,2]
[388465317,1759180239368,-1402.76,0.00022037,2]
[388465319,1759180239378,-480.0,0.00022037,2]
[388465321,1759180239389,-4210.83,0.00022037,2]
[388465324,1759180239398,-576.69,0.00022037,2]
[388465329,1759180239409,-595.24,0.00022037,2]
[388465331,1759180239418,-480.0,0.00022037,2]
[388465333,1759180239427,-480.0,0.00022037,2]
[388465334,1759180239437,-480.0,0.00022037,2]
[388465337,1759180239447,-1696.01,0.00022037,2]